[Event "Early-Titled-Tuesday-Blitz-June-18-2024"]
[Site "Chess.com"]
[Date "2024.06.18"]
[Round "11"]
[White "Defend1r"]
[Black "SuperPower2011"]
[Result "1-0"]
[WhiteElo "2562"]
[BlackElo "2703"]
[TimeControl "180+1"]
[EndTime "10:09:16 PDT"]
[Termination "Defend1r won on time"]

1. e4 {[%clk 0:03:00.9]} 1... c5 {[%clk 0:02:58]} 2. Nf3 {[%clk 0:03:00.7]} 2...
e6 {[%clk 0:02:56.3]} 3. Bd3 {[%clk 0:02:55.5]} 3... Nc6 {[%clk 0:02:52.7]} 4.
b3 {[%clk 0:02:54.8]} 4... Nf6 {[%clk 0:02:49]} 5. Bb2 {[%clk 0:02:54.3]} 5...
Be7 {[%clk 0:02:48.9]} 6. O-O {[%clk 0:02:53.9]} 6... O-O {[%clk 0:02:47.9]} 7.
Re1 {[%clk 0:02:53.9]} 7... d5 {[%clk 0:02:47.6]} 8. exd5 {[%clk 0:02:53.6]}
8... exd5 {[%clk 0:02:48.5]} 9. Ne5 {[%clk 0:02:51]} 9... Nxe5 {[%clk
0:02:46.8]} 10. Bxe5 {[%clk 0:02:50.8]} 10... Bg4 {[%clk 0:02:42.6]} 11. Be2
{[%clk 0:02:48.8]} 11... Bf5 {[%clk 0:02:42.3]} 12. d3 {[%clk 0:02:49]} 12...
Nd7 {[%clk 0:02:39.5]} 13. Bb2 {[%clk 0:02:47.4]} 13... Bf6 {[%clk 0:02:40]} 14.
Bxf6 {[%clk 0:02:46.7]} 14... Nxf6 {[%clk 0:02:39.8]} 15. Nd2 {[%clk 0:02:46.8]}
15... Qc7 {[%clk 0:02:39.3]} 16. h3 {[%clk 0:02:44]} 16... Rfe8 {[%clk
0:02:38.6]} 17. Nf1 {[%clk 0:02:42.9]} 17... h6 {[%clk 0:02:35.8]} 18. a4 {[%clk
0:02:42.7]} 18... Re7 {[%clk 0:02:33.1]} 19. Bf3 {[%clk 0:02:39.6]} 19... Rae8
{[%clk 0:02:33.1]} 20. Rxe7 {[%clk 0:02:39.4]} 20... Qxe7 {[%clk 0:02:33.8]} 21.
Qd2 {[%clk 0:02:39]} 21... Qe5 {[%clk 0:02:18.2]} 22. Rd1 {[%clk 0:02:38]} 22...
Qd4 {[%clk 0:02:07.6]} 23. Ne3 {[%clk 0:02:24.5]} 23... Be6 {[%clk 0:02:06.4]}
24. c3 {[%clk 0:02:24.4]} 24... Qf4 {[%clk 0:02:06.3]} 25. d4 {[%clk 0:02:21.9]}
25... Rc8 {[%clk 0:01:56]} 26. dxc5 {[%clk 0:02:08.2]} 26... Rxc5 {[%clk
0:01:56.9]} 27. b4 {[%clk 0:02:08.5]} 27... Rc8 {[%clk 0:01:23.7]} 28. Nxd5
{[%clk 0:02:07]} 28... Nxd5 {[%clk 0:01:24.1]} 29. Bxd5 {[%clk 0:02:06.3]} 29...
Qxd2 {[%clk 0:01:18.2]} 30. Rxd2 {[%clk 0:02:07.2]} 30... Rd8 {[%clk 0:00:56.2]}
31. c4 {[%clk 0:02:04.7]} 31... Bxd5 {[%clk 0:00:56.8]} 32. cxd5 {[%clk
0:02:02.5]} 32... Kf8 {[%clk 0:00:56.1]} 33. d6 {[%clk 0:01:53]} 33... Ke8
{[%clk 0:00:55.3]} 34. Re2+ {[%clk 0:01:52.5]} 34... Kd7 {[%clk 0:00:08.4]} 35.
Re7+ {[%clk 0:01:52.2]} 35... Kc6 {[%clk 0:00:02.6]} 36. Rc7+ {[%clk 0:01:49.6]}
36... Kb6 {[%clk 0:00:02.4]} 37. Rxf7 {[%clk 0:01:49.7]} 37... Rxd6 {[%clk
0:00:02.6]} 38. Rxg7 {[%clk 0:01:50.3]} 38... Rd1+ {[%clk 0:00:02.4]} 39. Kh2
{[%clk 0:01:49.5]} 39... Ra1 {[%clk 0:00:02.8]} 40. Rg6+ {[%clk 0:01:48.9]}
40... Kc7 {[%clk 0:00:03.1]} 41. a5 {[%clk 0:01:48.8]} 41... Rb1 {[%clk
0:00:03.3]} 42. Rg4 {[%clk 0:01:48.6]} 42... Kc6 {[%clk 0:00:03.9]} 43. Re4
{[%clk 0:01:30.1]} 43... Kb5 {[%clk 0:00:02]} 44. f4 {[%clk 0:01:09.3]} 44...
Rb2 {[%clk 0:00:01]} 45. f5 {[%clk 0:01:08.4]} 45... Rf2 {[%clk 0:00:01.1]} 46.
Re5+ {[%clk 0:00:57.5]} 46... Kxb4 {[%clk 0:00:01.7]} 47. Kg3 {[%clk 0:00:58.4]}
47... Rf1 {[%clk 0:00:02.3]} 48. h4 {[%clk 0:00:58.9]} 48... b5 {[%clk
0:00:02.6]} 49. axb6 {[%clk 0:00:58.3]} 49... axb6 {[%clk 0:00:03.5]} 50. Re6
{[%clk 0:00:58.8]} 50... b5 {[%clk 0:00:02.9]} 51. Kg4 {[%clk 0:00:59.4]} 51...
Ka4 {[%clk 0:00:01.4]} 52. Rxh6 {[%clk 0:00:58.6]} 52... b4 {[%clk 0:00:02.1]}
53. Kg5 {[%clk 0:00:56.7]} 53... Ka5 {[%clk 0:00:01.5]} 54. Rh8 {[%clk
0:00:56.2]} 54... b3 {[%clk 0:00:01.9]} 55. g4 {[%clk 0:00:53.7]} 55... Rf2
{[%clk 0:00:01]} 56. Rb8 {[%clk 0:00:52]} 56... b2 {[%clk 0:00:01.4]} 57. f6
{[%clk 0:00:52.5]} 57... Ka6 {[%clk 0:00:01.9]} 58. Kg6 {[%clk 0:00:52.4]} 58...
Ka7 {[%clk 0:00:02.1]} 59. Rb3 {[%clk 0:00:52.6]} 59... Rg2 {[%clk 0:00:01.1]}
60. g5 {[%clk 0:00:52.1]} 60... Rf2 {[%clk 0:00:01.1]} 61. f7 {[%clk 0:00:52.2]}
61... Ka6 {[%clk 0:00:01.7]} 62. Rxb2 {[%clk 0:00:50.5]} 62... Rxb2 {[%clk
0:00:02.6]} 63. f8=Q {[%clk 0:00:50.7]} 63... Rb1 {[%clk 0:00:03.4]} 64. Qf6+
{[%clk 0:00:50.7]} 64... Ka7 {[%clk 0:00:03.9]} 65. Qe7+ {[%clk 0:00:50.2]}
65... Ka6 {[%clk 0:00:04.5]} 66. Qd7 {[%clk 0:00:47.4]} 66... Rb6+ {[%clk
0:00:03.9]} 67. Kh5 {[%clk 0:00:46.2]} 67... Rb2 {[%clk 0:00:03.3]} 68. Qa4+
{[%clk 0:00:46.1]} 68... Kb7 {[%clk 0:00:03.5]} 69. Qe4+ {[%clk 0:00:46.1]}
69... Kc8 {[%clk 0:00:02.7]} 70. Qc6+ {[%clk 0:00:44.2]} 70... Kb8 {[%clk
0:00:02.4]} 71. Qd6+ {[%clk 0:00:44.1]} 71... Kb7 {[%clk 0:00:02.4]} 72. Qd5+
{[%clk 0:00:43.5]} 72... Kc8 {[%clk 0:00:02.4]} 73. Qe6+ {[%clk 0:00:42.7]}
73... Kb7 {[%clk 0:00:02.4]} 74. Qd7+ {[%clk 0:00:42.9]} 74... Ka8 {[%clk
0:00:01.4]} 75. Qc8+ {[%clk 0:00:41.6]} 75... Ka7 {[%clk 0:00:01.8]} 76. Qc7+
{[%clk 0:00:38.9]} 76... Ka8 {[%clk 0:00:02]} 77. Qc6+ {[%clk 0:00:36]} 77...
Ka7 {[%clk 0:00:01.6]} 78. g6 {[%clk 0:00:34.2]} 78... Rg2 {[%clk 0:00:01]} 79.
Qxg2 {[%clk 0:00:33.2]} 1-0

[Event "Early-Titled-Tuesday-Blitz-June-18-2024"]
[Site "Chess.com"]
[Date "2024.06.18"]
[Round "11"]
[White "BirdMaster3000"]
[Black "Prizant_academy"]
[Result "0-1"]
[WhiteElo "2780"]
[BlackElo "2972"]
[TimeControl "180+1"]
[EndTime "10:09:19 PDT"]
[Termination "Prizant_academy won by resignation"]

1. f4 {[%clk 0:03:00.9]} 1... Nc6 {[%clk 0:02:58.5]} 2. Nf3 {[%clk 0:03:00.4]}
2... d5 {[%clk 0:02:57.2]} 3. e3 {[%clk 0:03:00.3]} 3... Bg4 {[%clk 0:02:57.2]}
4. Bb5 {[%clk 0:03:00.6]} 4... Qd7 {[%clk 0:02:55.2]} 5. d4 {[%clk 0:02:50.1]}
5... a6 {[%clk 0:02:50.2]} 6. Be2 {[%clk 0:02:47.6]} 6... Nf6 {[%clk 0:02:32.5]}
7. O-O {[%clk 0:02:42.9]} 7... e6 {[%clk 0:02:24.9]} 8. c4 {[%clk 0:02:38.4]}
8... Be7 {[%clk 0:02:15.8]} 9. Nbd2 {[%clk 0:02:18.8]} 9... O-O {[%clk
0:01:58.9]} 10. Ne5 {[%clk 0:02:14.9]} 10... Bxe2 {[%clk 0:01:59.1]} 11. Qxe2
{[%clk 0:02:14.9]} 11... Qe8 {[%clk 0:01:58.6]} 12. b3 {[%clk 0:02:08.7]} 12...
Bb4 {[%clk 0:01:22.4]} 13. Bb2 {[%clk 0:01:51.9]} 13... Bxd2 {[%clk 0:01:22.5]}
14. Qxd2 {[%clk 0:01:51.3]} 14... Ne4 {[%clk 0:01:23]} 15. Qe2 {[%clk 0:01:41]}
15... f6 {[%clk 0:01:23.1]} 16. Nd3 {[%clk 0:01:37.6]} 16... Qf7 {[%clk
0:01:08.1]} 17. Rac1 {[%clk 0:01:24.1]} 17... Rac8 {[%clk 0:01:08.2]} 18. f5
{[%clk 0:01:19]} 18... exf5 {[%clk 0:01:05.5]} 19. Rxf5 {[%clk 0:01:18.6]} 19...
Ne7 {[%clk 0:01:05.1]} 20. Rff1 {[%clk 0:01:16.6]} 20... Rfe8 {[%clk 0:01:04.5]}
21. Nf4 {[%clk 0:01:12.8]} 21... c6 {[%clk 0:00:55.3]} 22. Ba3 {[%clk 0:01:09]}
22... Ng6 {[%clk 0:00:55.5]} 23. Nd3 {[%clk 0:00:53.5]} 23... Qe6 {[%clk
0:00:55.5]} 24. Rc2 {[%clk 0:00:43]} 24... Rcd8 {[%clk 0:00:47.8]} 25. Rfc1
{[%clk 0:00:40.9]} 25... Ng5 {[%clk 0:00:41.7]} 26. Nc5 {[%clk 0:00:40.5]} 26...
Qf7 {[%clk 0:00:38.2]} 27. Qd3 {[%clk 0:00:36.7]} 27... Ne4 {[%clk 0:00:34.4]}
28. Bb4 {[%clk 0:00:34.1]} 28... Nxc5 {[%clk 0:00:33.7]} 29. Bxc5 {[%clk
0:00:33]} 29... Re4 {[%clk 0:00:33.5]} 30. cxd5 {[%clk 0:00:30.3]} 30... Qxd5
{[%clk 0:00:34.4]} 31. Rc3 {[%clk 0:00:24.8]} 31... Rde8 {[%clk 0:00:31.2]} 32.
Re1 {[%clk 0:00:20.5]} 32... R4e6 {[%clk 0:00:29.2]} 33. Qc4 {[%clk 0:00:20]}
33... Qe4 {[%clk 0:00:26.8]} 34. Bd6 {[%clk 0:00:17.2]} 34... Nh4 {[%clk
0:00:18.8]} 35. Re2 {[%clk 0:00:17.7]} 35... Nf5 {[%clk 0:00:13.5]} 36. Bf4
{[%clk 0:00:17.1]} 36... Nxd4 {[%clk 0:00:11.2]} 37. Rd2 {[%clk 0:00:14.2]}
37... Nf5 {[%clk 0:00:10.8]} 38. Qxe4 {[%clk 0:00:14]} 38... Rxe4 {[%clk
0:00:11.7]} 39. Rd7 {[%clk 0:00:14.3]} 39... R4e7 {[%clk 0:00:12]} 40. Rcd3
{[%clk 0:00:12.4]} 40... Kf7 {[%clk 0:00:12.1]} 41. g4 {[%clk 0:00:11]} 41...
Rxd7 {[%clk 0:00:10.2]} 42. Rxd7+ {[%clk 0:00:10.8]} 42... Re7 {[%clk
0:00:10.9]} 43. Rd8 {[%clk 0:00:10.1]} 43... Nxe3 {[%clk 0:00:09.1]} 44. Bxe3
{[%clk 0:00:08.8]} 44... Rxe3 {[%clk 0:00:09.2]} 45. Rb8 {[%clk 0:00:09.7]}
45... Re7 {[%clk 0:00:09.6]} 46. Kf2 {[%clk 0:00:10.1]} 46... Ke6 {[%clk
0:00:10.1]} 47. Kf3 {[%clk 0:00:10.4]} 47... Ke5 {[%clk 0:00:09.1]} 48. Ke3
{[%clk 0:00:08.8]} 48... c5 {[%clk 0:00:09.5]} 49. h3 {[%clk 0:00:07.8]} 49...
Kd5+ {[%clk 0:00:09.4]} 50. Kd3 {[%clk 0:00:07.2]} 50... Rf7 {[%clk 0:00:09.3]}
51. h4 {[%clk 0:00:06.5]} 51... g6 {[%clk 0:00:09.2]} 52. h5 {[%clk 0:00:06.4]}
52... f5 {[%clk 0:00:07.3]} 53. gxf5 {[%clk 0:00:04.7]} 53... gxf5 {[%clk
0:00:07.4]} 54. Ke3 {[%clk 0:00:03.9]} 54... f4+ {[%clk 0:00:06.5]} 55. Kf3
{[%clk 0:00:04.3]} 55... b5 {[%clk 0:00:06.1]} 56. Rd8+ {[%clk 0:00:03.9]} 56...
Ke5 {[%clk 0:00:06.7]} 57. Ra8 {[%clk 0:00:03.9]} 57... c4 {[%clk 0:00:06]} 58.
bxc4 {[%clk 0:00:02.5]} 58... bxc4 {[%clk 0:00:06.9]} 59. Rxa6 {[%clk
0:00:02.9]} 59... c3 {[%clk 0:00:07]} 60. Rc6 {[%clk 0:00:01.2]} 60... Kd4
{[%clk 0:00:07.4]} 61. Rc8 {[%clk 0:00:01.6]} 61... Kd3 {[%clk 0:00:06.5]} 62.
Rd8+ {[%clk 0:00:01.2]} 62... Kc2 {[%clk 0:00:06.9]} 63. Rc8 {[%clk 0:00:02.1]}
63... Kb2 {[%clk 0:00:07.2]} 64. a4 {[%clk 0:00:01.9]} 64... c2 {[%clk
0:00:07.7]} 65. a5 {[%clk 0:00:02.3]} 65... c1=Q {[%clk 0:00:07.5]} 66. Rxc1
{[%clk 0:00:03.2]} 66... Kxc1 {[%clk 0:00:08.2]} 67. a6 {[%clk 0:00:04]} 67...
Kd2 {[%clk 0:00:06.9]} 68. a7 {[%clk 0:00:04.6]} 68... Rxa7 {[%clk 0:00:07.1]}
69. Kxf4 {[%clk 0:00:05.5]} 69... Ra5 {[%clk 0:00:07.8]} 70. Kg4 {[%clk
0:00:05.5]} 70... h6 {[%clk 0:00:08.3]} 0-1

[Event "Early-Titled-Tuesday-Blitz-June-18-2024"]
[Site "Chess.com"]
[Date "2024.06.18"]
[Round "11"]
[White "Journey_to_GrandMaster_YT"]
[Black "sokidze"]
[Result "0-1"]
[WhiteElo "2633"]
[BlackElo "2778"]
[TimeControl "180+1"]
[EndTime "10:09:34 PDT"]
[Termination "sokidze won by resignation"]

1. Nf3 {[%clk 0:03:00.9]} 1... d5 {[%clk 0:03:00]} 2. d4 {[%clk 0:02:59.2]} 2...
Nf6 {[%clk 0:02:59.8]} 3. c4 {[%clk 0:02:59.7]} 3... e6 {[%clk 0:02:59.2]} 4.
Nc3 {[%clk 0:03:00.3]} 4... a6 {[%clk 0:02:59.8]} 5. cxd5 {[%clk 0:02:50.9]}
5... exd5 {[%clk 0:03:00]} 6. Bg5 {[%clk 0:02:50.2]} 6... Be6 {[%clk 0:03:00.4]}
7. e3 {[%clk 0:02:50.2]} 7... Nbd7 {[%clk 0:03:00.7]} 8. Bd3 {[%clk 0:02:50.2]}
8... Bd6 {[%clk 0:03:01.4]} 9. O-O {[%clk 0:02:46.6]} 9... c6 {[%clk 0:03:01.5]}
10. Qc2 {[%clk 0:02:37]} 10... Qc7 {[%clk 0:03:01.6]} 11. Rab1 {[%clk
0:02:31.4]} 11... Bg4 {[%clk 0:02:58.9]} 12. Nd2 {[%clk 0:01:40.4]} 12... h6
{[%clk 0:02:22.9]} 13. Bxf6 {[%clk 0:01:12.9]} 13... Nxf6 {[%clk 0:02:23.1]} 14.
h3 {[%clk 0:01:12]} 14... Bd7 {[%clk 0:02:21.7]} 15. e4 {[%clk 0:01:09.5]} 15...
dxe4 {[%clk 0:02:19.7]} 16. Ndxe4 {[%clk 0:01:10.1]} 16... Nxe4 {[%clk
0:02:11.4]} 17. Nxe4 {[%clk 0:01:06.9]} 17... O-O {[%clk 0:02:11.4]} 18. Rfe1
{[%clk 0:01:00.7]} 18... Be6 {[%clk 0:02:06.5]} 19. Nc5 {[%clk 0:00:54.3]} 19...
Bd5 {[%clk 0:02:04.8]} 20. Bc4 {[%clk 0:00:47.7]} 20... Rfe8 {[%clk 0:01:49.2]}
21. Bxd5 {[%clk 0:00:45.8]} 21... cxd5 {[%clk 0:01:49.3]} 22. Qd2 {[%clk
0:00:42.2]} 22... Bxc5 {[%clk 0:01:43.2]} 23. Rec1 {[%clk 0:00:27.4]} 23... Re4
{[%clk 0:01:12.6]} 24. Rxc5 {[%clk 0:00:24.3]} 24... Qd6 {[%clk 0:01:12.7]} 25.
Rbc1 {[%clk 0:00:22]} 25... Rae8 {[%clk 0:01:11.6]} 26. Rc8 {[%clk 0:00:20.9]}
26... g6 {[%clk 0:01:06]} 27. Rxe8+ {[%clk 0:00:20.8]} 27... Rxe8 {[%clk
0:01:06.7]} 28. Re1 {[%clk 0:00:20.1]} 28... Rc8 {[%clk 0:01:06.1]} 29. Rc1
{[%clk 0:00:20]} 29... Rd8 {[%clk 0:01:06.4]} 30. g3 {[%clk 0:00:17.4]} 30...
Qe6 {[%clk 0:01:05]} 31. Kh2 {[%clk 0:00:15.8]} 31... Re8 {[%clk 0:01:05.1]} 32.
Rc2 {[%clk 0:00:15.3]} 32... Qf6 {[%clk 0:00:49.2]} 33. Rc3 {[%clk 0:00:13.1]}
33... Re4 {[%clk 0:00:47.4]} 34. Rd3 {[%clk 0:00:12.4]} 34... h5 {[%clk
0:00:46.9]} 35. h4 {[%clk 0:00:11.6]} 35... Kg7 {[%clk 0:00:37.1]} 36. Kg2
{[%clk 0:00:12.1]} 36... b6 {[%clk 0:00:36.5]} 37. Qg5 {[%clk 0:00:09.2]} 37...
Qd6 {[%clk 0:00:25.2]} 38. a3 {[%clk 0:00:05.9]} 38... a5 {[%clk 0:00:25]} 39.
Kh2 {[%clk 0:00:04.1]} 39... Re2 {[%clk 0:00:23.9]} 40. Kg2 {[%clk 0:00:03.5]}
40... Rxb2 {[%clk 0:00:23.4]} 41. Re3 {[%clk 0:00:03.6]} 41... Qf6 {[%clk
0:00:11]} 42. Qxf6+ {[%clk 0:00:02.3]} 42... Kxf6 {[%clk 0:00:11.9]} 43. Re5
{[%clk 0:00:02.6]} 43... Rb5 {[%clk 0:00:12.2]} 44. a4 {[%clk 0:00:01]} 44...
Rb4 {[%clk 0:00:12.5]} 45. Rxd5 {[%clk 0:00:01.6]} 45... Rxa4 {[%clk 0:00:13.1]}
46. Rd6+ {[%clk 0:00:02.3]} 46... Ke7 {[%clk 0:00:09.7]} 47. Rxb6 {[%clk
0:00:03.2]} 47... Rxd4 {[%clk 0:00:10.4]} 48. Ra6 {[%clk 0:00:03.7]} 48... a4
{[%clk 0:00:11]} 49. Kf3 {[%clk 0:00:04]} 49... Rb4 {[%clk 0:00:09.2]} 50. Ke3
{[%clk 0:00:04]} 50... Rb3+ {[%clk 0:00:09.8]} 51. Kf4 {[%clk 0:00:03.8]} 51...
a3 {[%clk 0:00:10.3]} 52. f3 {[%clk 0:00:04.2]} 52... Rb4+ {[%clk 0:00:10]} 53.
Kg5 {[%clk 0:00:04.4]} 53... Rb3 {[%clk 0:00:10]} 54. Kf4 {[%clk 0:00:04.3]}
54... Kd7 {[%clk 0:00:07.7]} 55. Ra7+ {[%clk 0:00:04.4]} 55... Kc6 {[%clk
0:00:07.9]} 56. Rxf7 {[%clk 0:00:03.6]} 56... Rb4+ {[%clk 0:00:08.2]} 57. Kg5
{[%clk 0:00:03.6]} 57... Ra4 {[%clk 0:00:08.9]} 58. Rf8 {[%clk 0:00:03]} 58...
a2 {[%clk 0:00:08.7]} 59. Rc8+ {[%clk 0:00:03.7]} 59... Kd7 {[%clk 0:00:09.2]}
60. Rc1 {[%clk 0:00:04.6]} 60... a1=Q {[%clk 0:00:06.3]} 61. Rxa1 {[%clk
0:00:05.2]} 61... Rxa1 {[%clk 0:00:07.2]} 62. Kxg6 {[%clk 0:00:05.9]} 62... Ke7
{[%clk 0:00:07.4]} 63. g4 {[%clk 0:00:05.7]} 63... hxg4 {[%clk 0:00:07]} 64.
fxg4 {[%clk 0:00:06.6]} 64... Kf8 {[%clk 0:00:07.6]} 65. h5 {[%clk 0:00:06.6]}
65... Ra6+ {[%clk 0:00:07.1]} 66. Kh7 {[%clk 0:00:06.5]} 66... Ra7+ {[%clk
0:00:07.6]} 67. Kh6 {[%clk 0:00:07.1]} 67... Kg8 {[%clk 0:00:08]} 68. g5 {[%clk
0:00:07.6]} 68... Rb7 {[%clk 0:00:05.9]} 69. g6 {[%clk 0:00:07.1]} 69... Rb5
{[%clk 0:00:06.1]} 70. g7 {[%clk 0:00:02.1]} 70... Rb6+ {[%clk 0:00:06.1]} 71.
Kg5 {[%clk 0:00:01.6]} 71... Kxg7 {[%clk 0:00:06.7]} 72. h6+ {[%clk 0:00:01.6]}
72... Rxh6 {[%clk 0:00:07.3]} 73. Kf5 {[%clk 0:00:02.5]} 73... Rh5+ {[%clk
0:00:07.6]} 74. Kf4 {[%clk 0:00:02.8]} 74... Kf6 {[%clk 0:00:07.8]} 75. Kf3
{[%clk 0:00:03.7]} 75... Kf5 {[%clk 0:00:08.1]} 0-1

[Event "Early-Titled-Tuesday-Blitz-June-18-2024"]
[Site "Chess.com"]
[Date "2024.06.18"]
[Round "11"]
[White "Vaathi_Coming"]
[Black "TigrVShlyape"]
[Result "1/2-1/2"]
[WhiteElo "2921"]
[BlackElo "3003"]
[TimeControl "180+1"]
[EndTime "10:10:02 PDT"]
[Termination "Game drawn by repetition"]

1. g3 {[%clk 0:03:00.9]} 1... d5 {[%clk 0:02:59.1]} 2. Bg2 {[%clk 0:03:01.7]}
2... Nf6 {[%clk 0:02:58.3]} 3. d3 {[%clk 0:03:02]} 3... c6 {[%clk 0:02:58.3]} 4.
Nf3 {[%clk 0:03:02.4]} 4... Bg4 {[%clk 0:02:56.5]} 5. O-O {[%clk 0:03:02.5]}
5... Nbd7 {[%clk 0:02:56.1]} 6. h3 {[%clk 0:02:58.9]} 6... Bh5 {[%clk
0:02:55.9]} 7. Qe1 {[%clk 0:02:56.8]} 7... e5 {[%clk 0:02:49.7]} 8. e4 {[%clk
0:02:57]} 8... dxe4 {[%clk 0:02:47.9]} 9. dxe4 {[%clk 0:02:57.9]} 9... Bc5
{[%clk 0:02:40.9]} 10. a4 {[%clk 0:02:56.3]} 10... a5 {[%clk 0:02:39.5]} 11.
Nbd2 {[%clk 0:02:55.8]} 11... O-O {[%clk 0:02:38.3]} 12. Nb3 {[%clk 0:02:54.6]}
12... Bb4 {[%clk 0:02:36.9]} 13. c3 {[%clk 0:02:38.7]} 13... Be7 {[%clk
0:02:36.1]} 14. Nfd2 {[%clk 0:02:33.7]} 14... Re8 {[%clk 0:02:34.9]} 15. Nc4
{[%clk 0:02:32.2]} 15... Bf8 {[%clk 0:02:30.1]} 16. Be3 {[%clk 0:02:31.6]} 16...
Bg6 {[%clk 0:02:25.8]} 17. f3 {[%clk 0:02:31.4]} 17... Qc7 {[%clk 0:02:23.5]}
18. Qf2 {[%clk 0:02:30.4]} 18... Ra6 {[%clk 0:02:03.9]} 19. Rfd1 {[%clk
0:02:21.8]} 19... b5 {[%clk 0:01:57]} 20. axb5 {[%clk 0:02:15.7]} 20... cxb5
{[%clk 0:01:57.3]} 21. Rxa5 {[%clk 0:01:59.6]} 21... Qxc4 {[%clk 0:01:52.2]} 22.
Rxa6 {[%clk 0:01:59]} 22... Qxb3 {[%clk 0:01:52.2]} 23. Rd2 {[%clk 0:01:56.3]}
23... b4 {[%clk 0:01:50.4]} 24. Ra7 {[%clk 0:01:51.7]} 24... bxc3 {[%clk
0:01:49.6]} 25. bxc3 {[%clk 0:01:52.6]} 25... Nb8 {[%clk 0:01:38.1]} 26. Rb2
{[%clk 0:01:06.3]} 26... Qxc3 {[%clk 0:01:33.3]} 27. Ra8 {[%clk 0:01:06.5]}
27... Nbd7 {[%clk 0:01:26.2]} 28. Rxe8 {[%clk 0:01:05.8]} 28... Nxe8 {[%clk
0:01:26.3]} 29. Rc2 {[%clk 0:01:05.7]} 29... Qb3 {[%clk 0:01:17.9]} 30. h4
{[%clk 0:01:01.9]} 30... Nef6 {[%clk 0:01:08.9]} 31. Rc8 {[%clk 0:00:54]} 31...
Bxe4 {[%clk 0:01:02.9]} 32. Bc5 {[%clk 0:00:31.4]} 32... Bb7 {[%clk 0:00:58.5]}
33. Rd8 {[%clk 0:00:31.3]} 33... Qc3 {[%clk 0:00:50.4]} 34. Bxf8 {[%clk
0:00:30.2]} 34... Nxf8 {[%clk 0:00:49.9]} 35. Qb6 {[%clk 0:00:24]} 35... Qc6
{[%clk 0:00:44.4]} 36. Qb4 {[%clk 0:00:21.8]} 36... Nd7 {[%clk 0:00:44.4]} 37.
Qe7 {[%clk 0:00:09.7]} 37... Qc5+ {[%clk 0:00:43.4]} 38. Qxc5 {[%clk 0:00:09.9]}
38... Nxc5 {[%clk 0:00:44.1]} 39. Kf2 {[%clk 0:00:10.3]} 39... Ne6 {[%clk
0:00:40.7]} 40. Rb8 {[%clk 0:00:10.9]} 40... Bc6 {[%clk 0:00:40.6]} 41. Bf1
{[%clk 0:00:07.9]} 41... g6 {[%clk 0:00:40.1]} 42. Ke3 {[%clk 0:00:07.7]} 42...
Kg7 {[%clk 0:00:40.5]} 43. Bc4 {[%clk 0:00:06.9]} 43... h5 {[%clk 0:00:39.1]}
44. Rb6 {[%clk 0:00:06.3]} 44... Bd7 {[%clk 0:00:39.1]} 45. Rb7 {[%clk
0:00:06.1]} 45... Kf6 {[%clk 0:00:38.3]} 46. Ra7 {[%clk 0:00:05.5]} 46... Nd4
{[%clk 0:00:31.7]} 47. Ra6+ {[%clk 0:00:05.2]} 47... Nfe6 {[%clk 0:00:29.8]} 48.
Bd5 {[%clk 0:00:04.7]} 48... Nf5+ {[%clk 0:00:29.6]} 49. Kf2 {[%clk 0:00:04.7]}
49... Ke7 {[%clk 0:00:29.3]} 50. Ra7 {[%clk 0:00:05.2]} 50... Kd6 {[%clk
0:00:27.4]} 51. Bc4 {[%clk 0:00:05.6]} 51... Nfd4 {[%clk 0:00:26.8]} 52. Ra6+
{[%clk 0:00:05.7]} 52... Nc6 {[%clk 0:00:26.1]} 53. Ra8 {[%clk 0:00:05.5]} 53...
Ke7 {[%clk 0:00:24.4]} 54. Ra6 {[%clk 0:00:04.8]} 54... Ned4 {[%clk 0:00:22.4]}
55. Ra8 {[%clk 0:00:04.8]} 55... Nf5 {[%clk 0:00:17.4]} 56. Bd3 {[%clk 0:00:05]}
56... Nd6 {[%clk 0:00:17.2]} 57. Bc2 {[%clk 0:00:05.3]} 57... f5 {[%clk
0:00:15.9]} 58. Bd1 {[%clk 0:00:05.2]} 58... Be6 {[%clk 0:00:15.5]} 59. Ra6
{[%clk 0:00:04.7]} 59... Bd5 {[%clk 0:00:15.9]} 60. Ra3 {[%clk 0:00:04.6]} 60...
Nd4 {[%clk 0:00:15.7]} 61. Ra5 {[%clk 0:00:04.9]} 61... Ke6 {[%clk 0:00:15.5]}
62. Ra7 {[%clk 0:00:05.6]} 62... e4 {[%clk 0:00:14.1]} 63. f4 {[%clk 0:00:05.5]}
63... Nc4 {[%clk 0:00:13.3]} 64. Ra6+ {[%clk 0:00:06]} 64... Kf7 {[%clk
0:00:12.5]} 65. Ra7+ {[%clk 0:00:06.2]} 65... Kf6 {[%clk 0:00:12.5]} 66. Rd7
{[%clk 0:00:06.1]} 66... Ke6 {[%clk 0:00:11.6]} 67. Rg7 {[%clk 0:00:06.7]} 67...
e3+ {[%clk 0:00:11.6]} 68. Ke1 {[%clk 0:00:07.3]} 68... Kf6 {[%clk 0:00:10.2]}
69. Rd7 {[%clk 0:00:07.1]} 69... Ke6 {[%clk 0:00:10.5]} 70. Rg7 {[%clk
0:00:07.4]} 70... Nb2 {[%clk 0:00:10.7]} 71. Be2 {[%clk 0:00:05.9]} 71... Nxe2
{[%clk 0:00:08.6]} 72. Kxe2 {[%clk 0:00:06.8]} 72... Nc4 {[%clk 0:00:08.9]} 73.
Rxg6+ {[%clk 0:00:07.1]} 73... Ke7 {[%clk 0:00:08.9]} 74. Rg5 {[%clk 0:00:07.3]}
74... Kf6 {[%clk 0:00:07.3]} 75. Rxh5 {[%clk 0:00:06.9]} 75... Be4 {[%clk
0:00:06.6]} 76. Rh6+ {[%clk 0:00:07.2]} 76... Kg7 {[%clk 0:00:06.3]} 77. Ra6
{[%clk 0:00:07]} 77... Bd5 {[%clk 0:00:05.6]} 78. h5 {[%clk 0:00:07.1]} 78...
Kh7 {[%clk 0:00:05.2]} 79. Rf6 {[%clk 0:00:06.8]} 79... Be4 {[%clk 0:00:05.2]}
80. Re6 {[%clk 0:00:06.5]} 80... Bd5 {[%clk 0:00:05.3]} 81. Rg6 {[%clk
0:00:05.7]} 81... Be4 {[%clk 0:00:05.3]} 82. Ra6 {[%clk 0:00:04.9]} 82... Bd5
{[%clk 0:00:05.4]} 83. Rf6 {[%clk 0:00:03.6]} 83... Be4 {[%clk 0:00:05.7]} 84.
Rg6 {[%clk 0:00:02.9]} 84... Bd5 {[%clk 0:00:06]} 85. Rg5 {[%clk 0:00:03]} 85...
Be4 {[%clk 0:00:06.3]} 86. Rg6 {[%clk 0:00:03.5]} 86... Bd5 {[%clk 0:00:06.2]}
87. Rf6 {[%clk 0:00:03.2]} 1/2-1/2